fUST/lending_fUST_20250716
["ID","MTS","AMOUNT","RATE_DAILY","PERIOD"]
[372425205,1752640243311,-460.0,0.00021149,2]
[372425207,1752640243321,-805.5,0.00021149,2]
[372425209,1752640243330,-460.0,0.00021149,2]
[372425210,1752640243339,-537.85,0.00021149,2]
[372425212,1752640243349,-2726.52,0.00021149,2]
[372425214,1752640243359,-1213.75983149,0.00021327,2]
[372425216,1752640243368,-460.0,0.0002134,2]
[372425218,1752640243377,-460.0,0.00021369,2]
[372425220,1752640243386,-2936.0,0.00021369,2]
[372425222,1752640243396,-602.44,0.00021369,2]
[372425224,1752640243405,-460.0,0.00021369,2]
[372425226,1752640243414,-744.89,0.00021369,2]
[372425228,1752640243424,-1589.32,0.00021369,2]
[372425230,1752640243433,-979.0,0.00021369,2]
[372425232,1752640243443,-460.0,0.00021369,2]
[372425234,1752640243452,-1006.77,0.00021369,2]
[372425236,1752640243461,-1228.14,0.00021369,2]
[372425238,1752640243470,-705.74,0.00021369,2]
[372425240,1752640243480,-1986.36,0.00021369,2]
[372425242,1752640243489,-559.29,0.00021369,2]
[372425244,1752640243498,-557.78,0.00021369,2]
[372425246,1752640243507,-1104.0,0.0002137,2]
[372425248,1752640243516,-500.0,0.0002137,2]
[372425251,1752640243526,-1004.34967279,0.00021383,2]
[372425253,1752640243535,-2110.04,0.000214,2]
[372425256,1752640243544,-460.0,0.00021423,2]
[372425257,1752640243553,-620.44,0.00021423,2]
[372425259,1752640243562,-460.0,0.00021423,2]
[372425261,1752640243571,-460.0,0.00021423,2]
[372425263,1752640243581,-805.5,0.00021423,2]
[372425265,1752640243590,-460.0,0.00021423,2]
[372425267,1752640243599,-537.85,0.00021423,2]
[372425269,1752640243609,-2726.52,0.00021423,2]
[372425271,1752640243619,-151.0,0.000215,4]
[372425274,1752640243628,-151.0,0.00021601,2]
[372425275,1752640243637,-500.0,0.00021601,2]
[372425277,1752640243647,-151.0,0.00021601,2]
[372425279,1752640243657,-500.0,0.00021601,2]
[372425281,1752640243666,-151.0,0.00021601,2]
[372425284,1752640243676,-151.0,0.00021601,2]
[372425285,1752640243685,-500.0,0.00021601,2]
[372425287,1752640243695,-151.0,0.00021601,2]
[372425289,1752640243704,-151.0,0.00021601,2]
[372425292,1752640243714,-500.0,0.00021601,2]
[372425293,1752640243723,-151.0,0.00021601,2]
[372425295,1752640243733,-151.0,0.00021601,2]
[372425297,1752640243742,-151.0,0.00021601,2]
[372425299,1752640243752,-151.0,0.00021601,2]
[372425301,1752640243762,-500.0,0.00021601,2]
[372425312,1752640243855,-151.0,0.00021601,2]
[372425314,1752640243865,-193.06127624,0.00021601,2]
[372425316,1752640243874,-151.0,0.00021601,2]
[372425318,1752640243884,-500.0,0.00021601,2]
[372425320,1752640243893,-151.0,0.00021601,2]
[372425322,1752640243902,-500.0,0.00021601,2]
[372425324,1752640243912,-151.0,0.00021601,2]
[372425326,1752640243921,-500.0,0.00021601,2]
[372425328,1752640243930,-151.0,0.00021601,2]
[372425330,1752640243940,-500.0,0.00021601,2]
[372425332,1752640243951,-151.0,0.00021601,2]
[372425334,1752640243961,-500.0,0.00021601,2]
[372425336,1752640243970,-151.0,0.00021601,2]
[372425338,1752640243980,-151.0,0.00021601,2]
[372425340,1752640243996,-500.0,0.00021601,2]
[372425342,1752640244008,-25000.0,0.00021601,2]
[372425344,1752640244017,-151.0,0.00021601,2]
[372425346,1752640244026,-151.0,0.00021601,2]
[372425348,1752640244037,-151.0,0.00021601,2]
[372425350,1752640244047,-500.0,0.00021601,2]
[372425352,1752640244056,-151.0,0.00021601,2]
[372425354,1752640244068,-175.61442781,0.00021601,2]
[372425356,1752640244079,-2759.0504015,0.00021601,2]
[372425358,1752640244089,-151.0,0.00021601,2]
[372425360,1752640244099,-500.0,0.00021601,2]
[372425362,1752640244108,-500.0,0.00021601,2]
[372425364,1752640244118,-151.0,0.00021601,2]
[372425366,1752640244128,-151.0,0.00021601,2]
[372425368,1752640244137,-500.0,0.00021601,2]
[372425370,1752640244146,-500.0,0.00021601,2]
[372425372,1752640244156,-151.0,0.00021601,2]
[372425374,1752640244165,-500.0,0.00021601,2]
[372425376,1752640244174,-151.0,0.00021601,2]
[372425378,1752640244183,-151.0,0.00021601,2]
[372425380,1752640244192,-151.0,0.00021601,2]
[372425382,1752640244201,-151.0,0.00021601,2]
[372425384,1752640244210,-151.0,0.00021601,2]
[372425386,1752640244219,-151.0,0.00021601,2]
[372425388,1752640244228,-151.0,0.00021601,2]
[372425390,1752640244237,-151.0,0.00021601,2]
[372425392,1752640244246,-151.0,0.00021601,2]
[372425394,1752640244255,-207.4,0.00021601,2]
[372425396,1752640244265,-151.0,0.00021601,2]
[372425398,1752640244275,-151.0,0.00021601,2]
[372425400,1752640244284,-166.46846412,0.00021601,2]
[372425402,1752640244293,-151.0,0.00021601,2]
[372425404,1752640244301,-151.0,0.00021601,2]
[372425406,1752640244311,-151.0,0.00021601,2]
[372425408,1752640244320,-151.0,0.00021601,2]
[372425410,1752640244329,-151.0,0.00021601,2]
[372425412,1752640244339,-151.0,0.00021601,2]
[372425414,1752640244347,-151.0,0.00021601,2]
[372425415,1752640244356,-151.0,0.00021601,2]
[372425417,1752640244366,-460.0,0.00021643,2]
[372425419,1752640244375,-2936.0,0.00021643,2]
[372425421,1752640244385,-602.44,0.00021643,2]
[372425423,1752640244394,-460.0,0.00021643,2]
[372425425,1752640244403,-744.89,0.00021643,2]
[372425428,1752640244413,-1589.32,0.00021643,2]
[372425430,1752640244423,-979.0,0.00021643,2]
[372425432,1752640244441,-460.0,0.00021643,2]
[372425433,1752640244456,-1006.77,0.00021643,2]
[372425436,1752640244466,-1228.14,0.00021643,2]
[372425437,1752640244475,-705.74,0.00021643,2]
[372425439,1752640244484,-1986.36,0.00021643,2]
[372425441,1752640244493,-559.29,0.00021643,2]
[372425443,1752640244503,-1104.0,0.00021644,2]
[372425446,1752640244513,-500.0,0.00021644,2]
[372425448,1752640244523,-587.0,0.00021659,2]
[372425450,1752640244532,-504.45331792,0.00021673,2]
[372425452,1752640244542,-500.0,0.00021673,2]
[372425453,1752640244551,-500.74551756,0.00021673,2]
[372425455,1752640244561,-471.55242615,0.00021673,2]
[372425458,1752640244570,-500.0,0.00021673,2]
[372425459,1752640244579,-501.55765168,0.00021673,2]
[372425462,1752640244590,-443.04809324,0.00021673,2]
[372425463,1752640244600,-500.0,0.00021673,2]
[372425465,1752640244610,-500.95998998,0.00021673,2]
[372425467,1752640244620,-500.0,0.00021673,2]
[372425469,1752640244630,-509.97453213,0.00021673,2]
[372425471,1752640244640,-500.0,0.00021673,2]
[372425473,1752640244649,-500.0,0.00021673,2]
[372425476,1752640244658,-500.0,0.00021686,2]
[372425478,1752640244668,-460.0,0.00021697,2]
[372425479,1752640244676,-620.44,0.00021697,2]
[372425482,1752640244686,-342.25,0.00021697,2]
[372425483,1752640244696,-460.0,0.00021697,2]
[372425486,1752640244705,-805.5,0.00021697,2]
[372425487,1752640244716,-353.14,0.00021697,2]
[372425489,1752640244726,-537.85,0.00021697,2]
[372425492,1752640244735,-2726.52,0.00021697,2]
[372425493,1752640244744,-560.0,0.00021888,2]
[372425496,1752640244754,-500.0,0.00021917,2]
[372425497,1752640244764,-500.0,0.00021917,2]
[372425500,1752640244773,-500.0,0.00021917,2]
[372425501,1752640244783,-500.0,0.00021917,2]
[372425503,1752640244793,-500.0,0.00021917,2]
[372425506,1752640244802,-500.0,0.00021917,2]
[372425507,1752640244812,-500.0,0.00021917,2]
[372425509,1752640244821,-500.0,0.00021917,2]
[372425511,1752640244830,-500.0,0.00021917,2]
[372425513,1752640244839,-500.0,0.00021917,2]
[372425515,1752640244850,-403.03,0.00021917,2]
[372425517,1752640244860,-2936.0,0.00021917,2]
[372425520,1752640244870,-602.44,0.00021917,2]
[372425521,1752640244879,-460.0,0.00021917,2]
[372425523,1752640244889,-744.89,0.00021917,2]
[372425525,1752640244899,-1589.32,0.00021917,2]
[372425527,1752640244908,-979.0,0.00021917,2]
[372425530,1752640244918,-460.0,0.00021917,2]
[372425532,1752640244927,-1006.77,0.00021917,2]
[372425533,1752640244936,-1228.14,0.00021917,2]
[372425535,1752640244945,-705.74,0.00021917,2]
[372425537,1752640244955,-1986.36,0.00021917,2]
[372425539,1752640244964,-559.29,0.00021917,2]
[372425541,1752640244973,-1104.0,0.00021918,2]
[372425543,1752640244982,-575.46220313,0.00021918,2]
[372425545,1752640244992,-200.0,0.00021918,2]
[372425547,1752640245001,-150.07429765,0.00021918,2]
[372425549,1752640245012,-460.0,0.00021971,2]
[372425551,1752640245022,-620.44,0.00021971,2]
[372425553,1752640245031,-460.0,0.00021971,2]
[372425555,1752640245043,-805.5,0.00021971,2]
[372425557,1752640245054,-537.85,0.00021971,2]
[372425559,1752640245064,-2726.52,0.00021971,2]
[372425562,1752640245074,-19042.88,0.00022,7]
[372425564,1752640245088,-150.0,0.00022,2]
[372425566,1752640245101,-168.0,0.00022,2]
[372425568,1752640245111,-151.0,0.000221,5]
[372425570,1752640245120,-500.0,0.00022191,2]
[372425572,1752640245130,-2936.0,0.00022191,2]
[372425574,1752640245139,-602.44,0.00022191,2]
[372425576,1752640245148,-339.24,0.00022191,2]
[372425578,1752640245157,-744.89,0.00022191,2]
[372425580,1752640245166,-1589.32,0.00022191,2]
[372425582,1752640245175,-979.0,0.00022191,2]
[372425584,1752640245184,-460.0,0.00022191,2]
[372425585,1752640245193,-1006.77,0.00022191,2]
[372425588,1752640245202,-1228.14,0.00022191,2]
[372425589,1752640245211,-705.74,0.00022191,2]
[372425591,1752640245221,-1986.36,0.00022191,2]
[372425593,1752640245230,-559.29,0.00022191,2]
[372425595,1752640245239,-1104.0,0.00022192,2]
[372425597,1752640245248,-1000.0,0.00022221,2]
[372425599,1752640245257,-1064.477332,0.00022221,2]
[372425601,1752640245267,-501.23142804,0.00022221,2]
[372425604,1752640245276,-1000.0,0.00022221,2]
[372425606,1752640245286,-504.00220653,0.00022221,2]
[372425607,1752640245295,-1000.0,0.00022221,2]
[372425610,1752640245305,-460.0,0.00022245,2]
[372425611,1752640245324,-620.44,0.00022245,2]
[372425614,1752640245334,-460.0,0.00022245,2]
[372425616,1752640245343,-805.5,0.00022245,2]
[372425617,1752640245352,-537.85,0.00022245,2]
[372425620,1752640245361,-2726.52,0.00022245,2]
[372425622,1752640245371,-660.0,0.00022436,2]
[372425624,1752640245383,-504.09248387,0.00022465,2]
[372425625,1752640245394,-2936.0,0.00022465,2]
[372425627,1752640245404,-602.44,0.00022465,2]
[372425629,1752640245414,-744.89,0.00022465,2]
[372425631,1752640245425,-1589.32,0.00022465,2]
[372425634,1752640245435,-979.0,0.00022465,2]
[372425636,1752640245444,-460.0,0.00022465,2]
[372425638,1752640245453,-1006.77,0.00022465,2]
[372425639,1752640245462,-1228.14,0.00022465,2]
[372425642,1752640245472,-705.74,0.00022465,2]
[372425643,1752640245482,-1986.36,0.00022465,2]
[372425645,1752640245492,-559.29,0.00022465,2]
[372425647,1752640245501,-1104.0,0.00022466,2]
[372425649,1752640245511,-1213.75983149,0.00022482,2]
[372425651,1752640245520,-17007.69522916,0.0002249,7]
[372425653,1752640245529,-460.0,0.00022519,2]
[372425655,1752640245540,-620.44,0.00022519,2]
[372425657,1752640245549,-468.72775545,0.00022519,2]
[372425659,1752640245560,-805.5,0.00022519,2]
[372425661,1752640245578,-537.85,0.00022519,2]
[372425664,1752640245592,-2726.52,0.00022519,2]
[372425665,1752640245601,-1154.25,0.000226,7]
[372425667,1752640245611,-346.78304288,0.00022603,2]
[372425669,1752640245621,-151.0,0.000227,10]
[372425671,1752640245629,-2936.0,0.00022739,2]
[372425673,1752640245639,-602.44,0.00022739,2]
[372425675,1752640245648,-744.89,0.00022739,2]
[372425677,1752640245657,-1589.32,0.00022739,2]
[372425679,1752640245666,-979.0,0.00022739,2]
[372425681,1752640245676,-460.0,0.00022739,2]
[372425683,1752640245685,-1006.77,0.00022739,2]
[372425686,1752640245695,-1228.14,0.00022739,2]
[372425688,1752640245705,-705.74,0.00022739,2]
[372425689,1752640245715,-1986.36,0.00022739,2]
[372425691,1752640245724,-559.29,0.00022739,2]
[372425693,1752640245733,-1104.0,0.0002274,2]
[372425695,1752640245743,-1500.0,0.00022768,2]
[372425697,1752640245752,-1500.0,0.00022768,2]
[372425699,1752640245761,-1003.9999861,0.00022768,2]
[372425701,1752640245770,-460.0,0.00022793,2]
[372425703,1752640245779,-620.44,0.00022793,2]
[372425705,1752640245789,-805.5,0.00022793,2]
[372425707,1752640245799,-537.85,0.00022793,2]
[372425709,1752640245809,-2726.52,0.00022793,2]
[372425712,1752640245818,-1002.12086,0.000228,2]
[372425715,1752640245827,-215.0738,0.0002297,2]
[372425717,1752640245836,-760.0,0.00022984,2]
[372425719,1752640245845,-1963.24868026,0.00023,2]
[372425721,1752640245854,-2055.41,0.00023007,2]
[372425723,1752640245864,-2936.0,0.00023013,2]
[372425733,1752640245952,-602.44,0.00023013,2]
[372425735,1752640245962,-744.89,0.00023013,2]
[372425737,1752640245971,-1589.32,0.00023013,2]
[372425739,1752640245981,-979.0,0.00023013,2]
[372425741,1752640245990,-460.0,0.00023013,2]
[372425743,1752640245999,-1006.77,0.00023013,2]
[372425745,1752640246008,-1228.14,0.00023013,2]
[372425747,1752640246020,-705.74,0.00023013,2]
[372425749,1752640246031,-1986.36,0.00023013,2]
[372425752,1752640246042,-559.29,0.00023013,2]
[372425754,1752640246051,-1104.0,0.00023014,2]
[372425755,1752640246061,-460.0,0.00023067,2]
[372425757,1752640246070,-620.44,0.00023067,2]
[372425759,1752640246080,-805.5,0.00023067,2]
[372425761,1752640246089,-537.85,0.00023067,2]
[372425763,1752640246100,-2726.52,0.00023067,2]
[372425765,1752640246109,-771.05,0.000232,2]
[372425767,1752640246118,-151.0,0.000232,8]
[372425769,1752640246128,-500.0,0.00023222,2]
[372425771,1752640246138,-2936.0,0.00023287,2]
[372425773,1752640246147,-602.44,0.00023287,2]
[372425775,1752640246156,-744.89,0.00023287,2]
[372425777,1752640246165,-1589.32,0.00023287,2]
[372425779,1752640246175,-979.0,0.00023287,2]
[372425781,1752640246184,-460.0,0.00023287,2]
[372425783,1752640246193,-1006.77,0.00023287,2]
[372425785,1752640246202,-1228.14,0.00023287,2]
[372425787,1752640246211,-705.74,0.00023287,2]
[372425789,1752640246221,-1986.36,0.00023287,2]
[372425791,1752640246231,-559.29,0.00023287,2]
[372425793,1752640246240,-1104.0,0.00023288,2]
[372425795,1752640246250,-2110.04,0.000233,7]
[372425797,1752640246259,-1000.0,0.000233,2]
[372425799,1752640246269,-2000.0,0.00023316,2]
[372425801,1752640246278,-506.36238514,0.00023316,2]
[372425803,1752640246288,-460.0,0.00023341,2]
[372425805,1752640246298,-620.44,0.00023341,2]
[372425807,1752640246308,-805.5,0.00023341,2]
[372425809,1752640246317,-537.85,0.00023341,2]
[372425811,1752640246326,-2726.52,0.00023341,2]
[372425813,1752640246335,-19042.88,0.000234,7]
[372425815,1752640246344,-1595.0,0.0002341,2]
[372425817,1752640246354,-600.0,0.00023431,2]
[372425819,1752640246363,-170.53,0.00023491,2]
[372425821,1752640246373,-819.40351298,0.0002352,2]
[372425823,1752640246382,-860.0,0.00023531,2]
[372425825,1752640246392,-200.0,0.00023561,2]
[372425827,1752640246401,-200.0,0.00023561,2]
[372425829,1752640246410,-200.0,0.00023561,2]
[372425831,1752640246420,-200.0,0.00023561,2]
[372425833,1752640246429,-200.0,0.00023561,2]
[372425835,1752640246439,-200.0,0.00023561,2]
[372425837,1752640246448,-200.0,0.00023561,2]
[372425839,1752640246457,-282.7493984,0.00023561,2]
[372425841,1752640246467,-2936.0,0.00023561,2]
[372425842,1752640246476,-602.44,0.00023561,2]
[372425843,1752640246486,-744.89,0.00023561,2]
[372425844,1752640246494,-1589.32,0.00023561,2]
[372425845,1752640246504,-979.0,0.00023561,2]
[372425846,1752640246513,-460.0,0.00023561,2]
[372425847,1752640246522,-1006.77,0.00023561,2]
[372425848,1752640246530,-1228.14,0.00023561,2]
[372425849,1752640246540,-705.74,0.00023561,2]
[372425850,1752640246549,-1986.36,0.00023561,2]
[372425851,1752640246560,-559.29,0.00023561,2]
[372425852,1752640246569,-1104.0,0.00023562,2]
[372425853,1752640246578,-12500.0,0.00023607,7]
[372425854,1752640246587,-443.54093753,0.00023615,2]
[372425855,1752640246596,-620.44,0.00023615,2]
[372425856,1752640246605,-805.5,0.00023615,2]
[372425857,1752640246614,-537.85,0.00023615,2]
[372425858,1752640246623,-2726.52,0.00023615,2]
[372425859,1752640246632,-823.0,0.00023627,2]
[372425860,1752640246642,-1213.75983149,0.00023636,2]
[372425862,1752640246651,-714.90504998,0.00023654,5]
[372425864,1752640246660,-861.9063624,0.00023668,2]
[372425866,1752640246670,-5486.86997907,0.0002368,7]
[372425868,1752640246679,-151.0,0.0002371,6]
[372425870,1752640246689,-1595.0,0.0002379,2]
[372425872,1752640246698,-1595.0,0.00023793,2]
[372425874,1752640246708,-151.0,0.000238,6]
[372425876,1752640246717,-1000.0,0.000238,2]
[372425878,1752640246726,-151.0,0.000238,6]
[372425880,1752640246735,-2936.0,0.00023835,2]
[372425881,1752640246744,-602.44,0.00023835,2]
[372425883,1752640246753,-744.89,0.00023835,2]
[372425885,1752640246762,-1589.32,0.00023835,2]
[372425887,1752640246772,-979.0,0.00023835,2]
[372425889,1752640246781,-460.0,0.00023835,2]
[372425891,1752640246791,-1006.77,0.00023835,2]
[372425894,1752640246800,-1228.14,0.00023835,2]
[372425895,1752640246810,-705.74,0.00023835,2]
[372425897,1752640246819,-1986.36,0.00023835,2]
[372425899,1752640246829,-559.29,0.00023835,2]
[372425901,1752640246838,-1104.0,0.00023836,2]
[372425903,1752640246848,-1498.34621255,0.00023864,2]
[372425905,1752640246857,-500.0,0.00023878,2]
[372425907,1752640246866,-620.44,0.00023889,2]
[372425909,1752640246876,-805.5,0.00023889,2]
[372425911,1752640246885,-537.85,0.00023889,2]
[372425913,1752640246894,-2726.52,0.00023889,2]
[372425915,1752640246904,-151.0,0.000239,8]
[372425918,1752640246913,-311.12770458,0.000239,2]
[372425919,1752640246922,-1595.0,0.00023919,2]
[372425921,1752640246932,-151.0,0.00023967,6]
[372425924,1752640246942,-321.4453883,0.00023973,2]
[372425925,1752640246951,-153.0,0.00023973,2]
[372425927,1752640246961,-361.4899892,0.00023973,2]
[372425929,1752640246970,-456.3646118,0.00023973,2]
[372425931,1752640246980,-1153.7302062,0.00023973,2]
[372425933,1752640246989,-153.0,0.00023973,2]
[372425935,1752640246998,-153.0,0.00023973,2]
[372425937,1752640247007,-153.0,0.00023973,2]
[372425939,1752640247017,-153.0,0.00023973,2]
[372425941,1752640247031,-1843.0,0.00023977,2]
[372425943,1752640247040,-647.0,0.00023981,2]
[372425945,1752640247049,-332.62332807,0.00024,14]
[372425947,1752640247059,-1692.37432593,0.00024,2]
[372425949,1752640247068,-10142.16600894,0.00024,2]
[372425951,1752640247077,-161.7848685,0.00024,2]
[372425953,1752640247086,-453.52457889,0.00024,2]
[372425955,1752640247096,-178.85127462,0.00024,7]
[372425957,1752640247111,-843.0,0.00024,14]
[372425959,1752640247121,-827.08738017,0.00024079,2]
[372425961,1752640247130,-1843.0,0.00024088,2]
[372425963,1752640247140,-1154.25,0.000241,7]
[372425965,1752640247149,-2936.0,0.00024109,2]
[372425967,1752640247159,-602.44,0.00024109,2]
[372425969,1752640247168,-744.89,0.00024109,2]
[372425972,1752640247178,-1589.32,0.00024109,2]
[372425974,1752640247187,-979.0,0.00024109,2]
[372425976,1752640247196,-469.71583346,0.00024109,2]
[372425978,1752640247207,-1006.77,0.00024109,2]
[372425979,1752640247216,-1228.14,0.00024109,2]
[372425982,1752640247226,-705.74,0.00024109,2]
[372425983,1752640247236,-1986.36,0.00024109,2]
[372425986,1752640247245,-559.29,0.00024109,2]
[372425988,1752640247255,-1104.0,0.0002411,2]
[372425990,1752640247265,-620.44,0.00024163,2]
[372425991,1752640247274,-805.5,0.00024163,2]
[372425993,1752640247283,-537.85,0.00024163,2]
[372425995,1752640247294,-2726.52,0.00024163,2]
[372425997,1752640247303,-151.0,0.000242,5]
[372425999,1752640247313,-12603.13032295,0.000242,3]
[372426001,1752640247322,-20752.92182739,0.000242,2]
[372426015,1752640247438,-460.0,0.00019178,2]
[372426017,1752640247448,-636.08,0.000242,2]
[372426020,1752640247464,-460.0,0.00019178,2]
[372426022,1752640247473,-2353.48024741,0.000242,2]
[372426024,1752640247485,-306.8679252,0.000242,2]
[372426026,1752640247495,-76.34484376,0.000242,7]
[372426028,1752640247506,-74.65515624,0.000242,7]
[372426030,1752640247515,-151.0,0.000242,7]
[372426032,1752640247525,-134.3376006,0.000242,7]
[372426068,1752640247858,-460.0,0.00019178,2]
[372426069,1752640247868,-162.2,0.00019178,2]
[372426072,1752640247879,-297.8,0.00019178,2]
[372426074,1752640247889,-460.0,0.00019452,2]
[372426076,1752640247898,-507.81458971,0.00021085,10]
[372426091,1752640248034,-460.0,0.00019178,2]
[372426092,1752640248045,-460.0,0.00019178,2]
[372426094,1752640248055,-460.0,0.00019452,2]
[372426097,1752640248065,-460.0,0.00019726,2]
[372426098,1752640248074,-460.0,0.0002,2]
[372426100,1752640248083,-460.0,0.00020273,2]
[372426102,1752640248093,-460.0,0.00020547,2]
[372426104,1752640248103,-460.0,0.00020821,2]
[372426106,1752640248113,-460.0,0.00020875,2]
[372426109,1752640248126,-1716.34541029,0.00021085,10]
[372426111,1752640248136,-460.0,0.00021095,2]
[372426113,1752640248145,-460.0,0.00021149,2]
[372426114,1752640248155,-460.0,0.00021369,2]
[372426117,1752640248165,-460.0,0.00021423,2]
[372426118,1752640248175,-460.0,0.00021643,2]
[372426120,1752640248184,-16.6623994,0.000242,7]
[372426122,1752640248193,-151.0,0.00024223,6]
[372426124,1752640248203,-151.0,0.000243,10]
[372426126,1752640248212,-151.0,0.000243,9]
[372426128,1752640248221,-501.45913508,0.00024318,2]
[372426130,1752640248231,-162.95973128,0.00024329,2]
[372426132,1752640248240,-223.0315306,0.00024339,2]
[372426135,1752640248252,-2936.0,0.00024383,2]
[372426137,1752640248262,-1589.32,0.00024383,2]
[372426139,1752640248272,-979.0,0.00024383,2]
[372426141,1752640248281,-1006.77,0.00024383,2]
[372426143,1752640248292,-536.72813886,0.00024383,2]
[372427352,1752640261241,312.128121,0.00013699,2]
[372428768,1752640333172,-594.0,0.00019177,2]
[372428769,1752640333193,-300.0,0.00019177,2]
[372428770,1752640333214,-460.0,0.00019178,2]
[372428771,1752640333235,-460.0,0.00019178,2]
[372428772,1752640333255,-460.0,0.00019178,2]
[372428773,1752640333276,-460.0,0.00019178,2]
[372428774,1752640333296,-362.79899814,0.00019178,2]
[372428775,1752640333317,-460.0,0.00019178,2]
[372428776,1752640333339,-460.0,0.00019178,2]
[372428777,1752640333361,-460.0,0.00019178,2]
[372428778,1752640333382,-460.0,0.00019178,2]
[372428779,1752640333403,-460.0,0.00019178,2]
[372428780,1752640333424,-460.0,0.00019178,2]
[372428781,1752640333444,-460.0,0.00019178,2]
[372428782,1752640333466,-826.0,0.00019178,2]
[372428783,1752640333486,-460.0,0.00019178,2]
[372428784,1752640333506,-460.0,0.00019178,2]
[372428785,1752640333526,-460.0,0.00019178,2]
[372428786,1752640333547,-460.0,0.00019178,2]
[372428787,1752640333568,-460.0,0.00019178,2]
[372428788,1752640333588,-460.0,0.00019178,2]
[372428789,1752640333611,-460.0,0.00019178,2]
[372428790,1752640333631,-380.99330358,0.00019178,2]
[372428791,1752640333652,-460.0,0.00019178,2]
[372428792,1752640333672,-460.0,0.00019178,2]
[372428793,1752640333693,-460.0,0.00019178,2]
[372428794,1752640333713,-460.0,0.00019178,2]
[372428795,1752640333733,-460.0,0.00019178,2]
[372428796,1752640333754,-460.0,0.00019178,2]
[372428797,1752640333775,-297.20769828,0.00019178,2]
[372428811,1752640412427,-300.0,0.00019177,2]
[372428812,1752640412449,-160.0,0.00019178,2]
[372428816,1752640924126,-159.0,0.00018128,2]
[372428817,1752641002039,-102.960094,0.00018128,2]
[372428818,1752641002066,-1020.989906,0.00018409,2]
[372428819,1752641026623,806.76524105,0.000181,2]
[372428820,1752641136108,-362.24916077,0.00018309,2]
[372428821,1752641136128,-160.0,0.00018402,2]
[372428822,1752641136150,-500.0,0.00018409,2]
[372428823,1752641136171,-428.15929239,0.00018409,2]
[372428824,1752641139128,-71.84070761,0.00018409,2]
[372428825,1752641139151,-500.0,0.00018409,2]
[372428826,1752641139174,-500.0,0.00018409,2]
[372428827,1752641139197,-500.0,0.00018409,2]
[372428828,1752641139220,-500.0,0.00018409,2]
[372428829,1752641139241,-247.02553192,0.00018409,2]
[372428831,1752641176383,873.8078159,0.00017458,2]
[372428832,1752641233250,-382.34646198,0.00018228,2]
[372428833,1752641233271,-186.45779353,0.00018302,2]
[372428834,1752641233291,-509.77476595,0.00018402,2]
[372428835,1752641233311,-300.0,0.00018407,2]
[372428836,1752641233332,-1200.0,0.00018408,2]
[372428837,1752641233352,-500.0,0.00018408,2]
[372428838,1752641233372,-500.0,0.00018408,2]
[372428839,1752641233394,-500.0,0.00018408,2]
[372428840,1752641233417,-527.25008012,0.00018408,2]
[372428841,1752641233437,-306.38247125,0.00018408,2]
[372428842,1752641233460,-166.50124411,0.00018408,2]